fUSD/lending_fUSD_20240118
["ID","MTS","AMOUNT","RATE_DAILY","PERIOD"]
[312020900,1705552254514,-300.0,0.00022738,2]
[312020901,1705552254525,-302.84333162,0.00022738,2]
[312020902,1705552254537,-166.15555864,0.00022738,2]
[312020903,1705552254550,-297553.30016636,0.00022739,3]
[312020904,1705552255068,-404.64145571,0.00022739,3]
[312020905,1705552255208,-500.0,0.00021917,2]
[312020906,1705552255219,-500.0,0.00021917,2]
[312020907,1705552255230,-3906.23264509,0.00022,2]
[312020908,1705552255997,-353.92,0.00021917,2]
[312020909,1705552256006,-93.73683579,0.00022,2]
[312020910,1705552256015,-1227.81819753,0.00022191,2]
[312020911,1705552256191,-500.0,0.00021917,2]
[312020912,1705552256201,-262.06504024,0.00022191,2]
[312020913,1705552256214,-1635.02676223,0.00022191,2]
[312020914,1705552256223,-617.39035136,0.00022191,2]
[312020915,1705552256232,-228.91074181,0.00022191,2]
[312020916,1705552256587,-500.0,0.00021917,2]
[312020917,1705552256597,-313.8159632,0.00022191,2]
[312020918,1705552256608,-537.44869031,0.00022465,2]
[312020919,1705552256618,-2715.88506378,0.00022465,2]
[312020920,1705552256635,-409.02493622,0.00022465,2]
[312020921,1705552256646,-632.70455282,0.00022739,3]
[312020922,1705552256657,-264.1135013,0.00022739,3]
[312020923,1705552256669,-306.0,0.00022739,3]
[312020924,1705552256874,-500.0,0.00022191,2]
[312020925,1705552256889,-219.46,0.00022465,2]
[312020926,1705552256897,-3804.46603407,0.00022739,3]
[312020927,1705552256930,-917.26208308,0.00022739,3]
[312020928,1705552256942,-408.1979072,0.00022739,3]
[312020929,1705552717134,-370.42818622,0.00018526,2]
[312020930,1705552717155,-629.5,0.00018527,2]
[312020931,1705553165055,208.0,0.00018429,2]
[312020932,1705553431737,-639.66,0.00018593,2]
[312020933,1705553431747,-518.79306986,0.00020333,2]
[312020934,1705553431794,-2549.92276614,0.00020333,2]
[312020935,1705553431803,-179.76483827,0.00020435,2]
[312020936,1705553431812,-166.83,0.00020535,2]
[312020937,1705553431822,-32.68619745,0.00020542,2]
[312020938,1705553431834,-409.23380255,0.00020542,2]
[312020939,1705553431843,-150.0,0.00020573,2]
[312020940,1705553431853,-175.90841155,0.00020574,2]
[312020941,1705553431865,-357.61614109,0.00020574,2]
[312020942,1705553431877,-993.79654298,0.00020574,2]
[312020943,1705553431891,-421.07761078,0.00020574,2]
[312020944,1705553431903,-597.28949344,0.00020574,2]
[312020945,1705553431922,-13346.13247094,0.00020574,2]
[312020946,1705553431933,-5123.51393727,0.00020574,2]
[312020947,1705553431944,-987.38231631,0.00020574,2]
[312020948,1705553431955,-2343.30392471,0.00020574,2]
[312020949,1705553431964,-150.0,0.00020575,2]
[312020950,1705553431977,-150.0,0.00020577,2]
[312020951,1705553431986,-166.79,0.00020608,2]
[312020952,1705553431995,-664.92,0.00020628,2]
[312020953,1705553432004,-673.07,0.00020708,2]
[312020954,1705553432013,-159.87,0.00020743,2]
[312020955,1705553432023,-1452.38088315,0.00020819,2]
[312020956,1705553432032,-639.66,0.00020857,2]
[312020957,1705553432041,-558.08,0.00020868,2]
[312020958,1705553432050,-163.63,0.00021039,2]
[312020959,1705553432059,-160.94,0.00021099,2]
[312020960,1705553432067,-260.05,0.00021182,2]
[312020961,1705553432077,-150.0,0.00021419,2]
[312020962,1705553432085,-664.92,0.00021659,2]
[312020963,1705553432095,-673.07,0.00021687,2]
[312020964,1705553432104,-150.0,0.00021697,2]
[312020965,1705553432113,-1115.00367426,0.00021717,2]
[312020966,1705553432130,-750.0505233,0.00021717,2]
[312020967,1705553432142,-566.4447676,0.00021717,2]
[312020968,1705553432153,-3285.77118433,0.00021717,2]
[312020971,1705553432165,-6718.84925178,0.00021717,2]
[312020973,1705553432179,-1085.79429873,0.00021717,2]
[312020975,1705553432189,-160.94,0.00021802,2]
[312020976,1705553432198,-598.1247,0.00021807,2]
[312020977,1705553432207,-306.97180835,0.00021816,2]
[312020978,1705553432216,-1544.24919292,0.00021817,2]
[312020979,1705553432289,-2464.8213102,0.00021817,2]
[312020992,1705553437776,-990.92949688,0.00021817,2]
[312020993,1705553437786,-1908.0035,0.00021817,2]
[312020994,1705553437795,-1319.5366,0.00021817,2]
[312020995,1705553437805,-113.35969268,0.00021817,2]
[312020996,1705553437817,-362.33147767,0.00021817,2]
[312020997,1705553437870,-272.89764892,0.00021817,2]
[312020998,1705553437927,-573.19171989,0.00021817,2]
[312020999,1705553437939,-961.40654544,0.00021817,2]
[312021000,1705553437996,-523.73272136,0.00021817,2]
[312021001,1705553438174,-521.03727085,0.00021817,2]
[312021002,1705553438202,-2763.99533157,0.00021817,2]
[312021204,1705553440245,-355.12996767,0.00021817,2]
[312021206,1705553440257,-2014.53425837,0.00021817,2]
[312021208,1705553440268,-469.50000035,0.00021817,2]
[312021277,1705553440880,-297.23615318,0.00021817,2]
[312021279,1705553440891,-360.21,0.00021817,2]
[312021283,1705553440936,-2681.98083323,0.00021817,2]
[312021285,1705553440995,-325.33534633,0.00021817,2]
[312021287,1705553441008,-856.53874824,0.00021817,2]
[312021290,1705553441020,-2400.47148425,0.00021817,2]
[312021292,1705553441029,-250.0,0.00021817,2]
[312021294,1705553441038,-189.0807,0.00021817,2]
[312021295,1705553441047,-1960.30986299,0.00021817,2]
[312021298,1705553441058,-58.98413701,0.00021817,2]
[312021300,1705553441067,-250.06266202,0.00021817,2]
[312021304,1705553441098,-286.83677164,0.00021817,2]
[312021306,1705553441109,-1466.08782232,0.00021817,2]
[312021309,1705553441121,-763.2575711,0.00021817,2]
[312021311,1705553441132,-18282.57030443,0.00021817,2]
[312021313,1705553441143,-668.16681472,0.00021817,2]
[312021368,1705553442817,-330.23400921,0.00021817,2]
[312021369,1705553442829,-13216.57087225,0.00021817,2]
[312021370,1705553443035,-788.66150102,0.00021817,2]
[312021371,1705553443047,-4347.98,0.00021817,2]
[312021372,1705553443092,-2347.74629723,0.00021817,2]
[312021373,1705553443103,-1309.91292816,0.00021817,2]
[312021374,1705553443256,-765.64397858,0.00021817,2]
[312021384,1705553445812,-1089.06822807,0.00021817,2]
[312021385,1705553445826,-9642.20023925,0.00021817,2]
[312021386,1705553445836,-1000.0,0.00021817,2]
[312021387,1705553445847,-500.0,0.000219,7]
[312021388,1705553445857,-150.0,0.00021901,2]
[312021389,1705553445866,-253.46480191,0.00021915,2]
[312021390,1705553445876,-221.41381807,0.00021915,2]
[312021391,1705553445885,-150.0,0.00021916,2]
[312021392,1705553445894,-500.0,0.00021917,2]
[312021393,1705553445903,-500.0,0.00021917,2]
[312021394,1705553445912,-519.57119514,0.00021917,2]
[312021395,1705553445921,-510.14217924,0.00021917,2]
[312021396,1705553445931,-503.68091759,0.00021917,2]
[312021397,1705553445940,-508.12591509,0.00021917,2]
[312021398,1705553445949,-500.0,0.00021917,2]
[312021399,1705553445958,-500.0,0.00021917,2]
[312021400,1705553445967,-500.0,0.00021917,2]
[312021401,1705553445976,-500.0,0.00021917,2]
[312021402,1705553445985,-500.0,0.00021917,2]
[312021403,1705553445994,-500.0,0.00021917,2]
[312021404,1705553446003,-500.0,0.00021917,2]
[312021405,1705553446012,-500.0,0.00021917,2]
[312021406,1705553446021,-279.64970694,0.00021917,2]
[312021407,1705553446075,-220.35029306,0.00021917,2]
[312021408,1705553446084,-500.58803254,0.00021917,2]
[312021409,1705553446093,-500.0,0.00021917,2]
[312021410,1705553446102,-500.0,0.00021917,2]
[312021411,1705553446111,-500.0,0.00021917,2]
[312021412,1705553446120,-500.0,0.00021917,2]
[312021413,1705553446129,-500.0,0.00021917,2]
[312021414,1705553446139,-510.1175197,0.00021917,2]
[312021415,1705553446148,-506.10037928,0.00021917,2]
[312021416,1705553446158,-500.0,0.00021917,2]
[312021417,1705553446167,-500.0,0.00021917,2]
[312021418,1705553446178,-500.0,0.00021917,2]
[312021419,1705553446192,-500.0,0.00021917,2]
[312021421,1705553446417,-500.0,0.00021917,2]
[312021422,1705553446427,-500.0,0.00021917,2]
[312021423,1705553446437,-500.0,0.00021917,2]
[312021424,1705553446446,-500.0,0.00021917,2]
[312021425,1705553446455,-526.85179009,0.00021917,2]
[312021426,1705553446464,-500.0,0.00021917,2]
[312021427,1705553446473,-586.34506658,0.00021917,2]
[312021428,1705553446482,-504.87530824,0.00021917,2]
[312021429,1705553446492,-500.0,0.00021917,2]
[312021430,1705553446501,-500.0,0.00021917,2]
[312021431,1705553446510,-500.0,0.00021917,2]
[312021432,1705553446519,-500.0,0.00021917,2]
[312021433,1705553446528,-527.53871258,0.00021917,2]
[312021434,1705553446537,-511.25460822,0.00021917,2]
[312021435,1705553446547,-500.0,0.00021917,2]
[312021436,1705553446556,-500.0,0.00021917,2]
[312021437,1705553446564,-500.0,0.00021917,2]
[312021438,1705553446574,-500.0,0.00021917,2]
[312021439,1705553446583,-500.0,0.00021917,2]
[312021440,1705553446592,-500.0,0.00021917,2]
[312021441,1705553446601,-500.0,0.00021917,2]
[312021442,1705553446611,-500.0,0.00021917,2]
[312021443,1705553446620,-500.0,0.00021917,2]
[312021444,1705553446629,-504.0883077,0.00021917,2]
[312021445,1705553446639,-507.96603363,0.00021917,2]
[312021446,1705553446648,-500.0,0.00021917,2]
[312021447,1705553446657,-512.42908473,0.00021917,2]
[312021448,1705553446666,-500.0,0.00021917,2]
[312021449,1705553446676,-500.0,0.00021917,2]
[312021450,1705553446685,-500.0,0.00021917,2]
[312021451,1705553446694,-500.0,0.00021917,2]
[312021452,1705553446702,-603.06059421,0.00021917,2]
[312021453,1705553446711,-500.0,0.00021917,2]
[312021454,1705553446720,-500.0,0.00021917,2]
[312021455,1705553446729,-500.0,0.00021917,2]
[312021456,1705553446739,-500.0,0.00021917,2]
[312021457,1705553446748,-500.0,0.00021917,2]
[312021458,1705553446758,-236.59534097,0.00021917,2]
[312021459,1705553446767,-503.67380825,0.00021917,2]
[312021460,1705553446776,-500.0,0.00021917,2]
[312021461,1705553446784,-500.0,0.00021917,2]
[312021462,1705553446794,-500.0,0.00021917,2]
[312021463,1705553446803,-500.0,0.00021917,2]
[312021464,1705553446812,-500.0,0.00021917,2]
[312021465,1705553446821,-297.04,0.00021917,2]
[312021466,1705553446830,-500.0,0.00021917,2]
[312021467,1705553446839,-517.1226256,0.00021917,10]
[312021468,1705553446849,-500.0,0.00021917,2]
[312021469,1705553446860,-500.0,0.00021917,2]
[312021470,1705553446869,-500.0,0.00021917,2]
[312021471,1705553446880,-500.0,0.00021917,2]
[312021472,1705553446890,-500.0,0.00021917,2]
[312021473,1705553446899,-588.88379959,0.00021917,2]
[312021474,1705553446910,-500.0,0.00021917,2]
[312021475,1705553446919,-500.0,0.00021917,2]
[312021476,1705553446930,-500.0,0.00021917,2]
[312021477,1705553446940,-500.0,0.00021917,2]
[312021478,1705553446950,-500.0,0.00021917,2]
[312021479,1705553446959,-398.57124913,0.00021917,2]
[312021480,1705553446968,-500.0,0.00021917,2]
[312021481,1705553446978,-177.00609712,0.00021917,2]
[312021482,1705553446988,-500.0,0.00021917,2]
[312021483,1705553446998,-500.0,0.00021917,2]
[312021484,1705553447008,-500.0,0.00021917,2]
[312021485,1705553447018,-500.0,0.00021917,2]
[312021486,1705553447029,-503.60429795,0.00021917,2]
[312021487,1705553447038,-506.03907556,0.00021917,2]
[312021488,1705553447049,-389.26611825,0.00021917,2]
[312021489,1705553447058,-500.0,0.00021917,2]
[312021490,1705553447067,-500.0,0.00021917,2]
[312021491,1705553447078,-576.89021943,0.00021917,2]
[312021492,1705553447087,-500.0,0.00021917,2]
[312021493,1705553447096,-369.83463571,0.00021917,2]
[312021494,1705553447105,-500.0,0.00021917,2]
[312021495,1705553447116,-508.86898379,0.00021917,2]
[312021496,1705553447126,-299.62610167,0.00021917,2]
[312021497,1705553447137,-500.0,0.00021917,2]
[312021498,1705553447146,-484.37488691,0.00021917,2]
[312021499,1705553447156,-500.0,0.00021917,2]
[312021500,1705553447166,-500.0,0.00021917,2]
[312021501,1705553447176,-500.0,0.00021917,2]
[312021502,1705553447187,-533.77424149,0.00021917,2]
[312021503,1705553447197,-500.0,0.00021917,2]
[312021504,1705553447206,-500.0,0.00021917,2]
[312021505,1705553447215,-529.07942944,0.00021917,2]
[312021506,1705553447224,-500.0,0.00021917,2]
[312021507,1705553447235,-500.0,0.00021917,2]
[312021508,1705553447247,-500.0,0.00021917,2]
[312021509,1705553447256,-500.0,0.00021917,2]
[312021510,1705553447266,-500.0,0.00021917,2]
[312021511,1705553447275,-500.0,0.00021917,2]
[312021512,1705553447286,-500.0,0.00021917,2]
[312021513,1705553447297,-500.0,0.00021917,2]
[312021514,1705553447306,-500.0,0.00021917,2]
[312021515,1705553447317,-500.0,0.00021917,2]
[312021516,1705553447328,-500.0,0.00021917,2]
[312021517,1705553447337,-611.9915032,0.00021917,2]
[312021518,1705553447347,-500.0,0.00021917,2]
[312021519,1705553447357,-500.0,0.00021917,2]
[312021520,1705553447367,-500.0,0.00021917,2]
[312021521,1705553447377,-500.0,0.00021917,2]
[312021522,1705553447387,-500.0,0.00021917,2]
[312021523,1705553447397,-500.0,0.00021917,2]
[312021524,1705553447406,-500.0,0.00021917,2]
[312021525,1705553447416,-500.0,0.00021917,2]
[312021526,1705553447425,-320.23369511,0.00021917,2]
[312021527,1705553447435,-407.16317419,0.00021917,2]
[312021528,1705553447454,-130.61944358,0.00021917,2]
[312021529,1705553447463,-500.0,0.00021917,2]
[312021530,1705553447474,-500.0,0.00021917,2]
[312021531,1705553447483,-507.87878229,0.00021917,2]
[312021532,1705553447493,-309.01283527,0.00021917,2]
[312021533,1705553447503,-500.0,0.00021917,2]
[312021534,1705553447512,-500.0,0.00021917,2]
[312021535,1705553447522,-509.5246143,0.00021917,2]
[312021536,1705553447531,-9.66192103,0.00021917,2]
[312021537,1705553447552,-490.33807897,0.00021917,2]
[312021538,1705553447561,-500.0,0.00021917,2]
[312021539,1705553447571,-500.0,0.00021917,2]
[312021540,1705553447580,-500.0,0.00021917,2]
[312021541,1705553447590,-500.0,0.00021917,2]
[312021542,1705553447599,-500.0,0.00021917,2]
[312021543,1705553447608,-500.0,0.00021917,2]
[312021544,1705553447617,-500.0,0.00021917,2]
[312021545,1705553447627,-500.0,0.00021917,2]
[312021546,1705553447637,-500.0,0.00021917,2]
[312021547,1705553447646,-500.0,0.00021917,2]
[312021548,1705553447656,-500.0,0.00021917,2]
[312021549,1705553447665,-500.0,0.00021917,2]
[312021550,1705553447676,-500.0,0.00021917,2]
[312021551,1705553447686,-28.3013153,0.00021917,2]
[312021552,1705553447699,-471.6986847,0.00021917,2]
[312021553,1705553447709,-300.08531762,0.00021917,2]
[312021554,1705553449840,293.7820765,0.00018429,2]
[312021555,1705553454230,162.8914513,0.00018429,2]
[312021556,1705553455326,5466.14480864,0.00018429,2]
[312021557,1705553456897,12000.0,0.00018429,2]
[312021558,1705553474033,155.0,0.00018429,2]
[312021560,1705553749513,1011.83630549,0.00018429,2]
[312021562,1705554574311,207.0,0.00018208,2]
[312021567,1705554632083,-175.14852125,0.00018555,2]
[312021568,1705554632092,-595.84,0.00018555,2]
[312021569,1705554632101,-230.26204204,0.00018936,2]
[312021570,1705554632111,-500.0,0.00020274,2]
[312021571,1705554632120,-168.88595529,0.00020376,2]
[312021572,1705554632129,-304.6,0.00020419,2]
[312021573,1705554632138,-788.33275535,0.00020443,2]
[312021574,1705554632155,-1032.05682951,0.00020443,2]
[312021575,1705554632166,-1882.36041514,0.00020443,2]
[312021576,1705554632176,-176.08,0.00020476,2]
[312021577,1705554632185,-161.38,0.00020495,2]
[312021578,1705554632195,-644.41,0.0002051,2]
[312021579,1705554632206,-353.54,0.00020521,2]
[312021580,1705554632216,-485.83,0.00020726,2]
[312021581,1705554632225,-161.95,0.00020789,2]
[312021582,1705554632234,-595.84,0.00020818,2]
[312021583,1705554632244,-161.38,0.00020905,2]
[312021584,1705554632252,-646.46,0.00020917,2]
[312021585,1705554632262,-2351.12079669,0.00021,2]
[312021586,1705554632273,-3358.67127474,0.00021,2]
[312021587,1705554632285,-7971.34765491,0.00021,2]
[312021588,1705554632296,-578.503761,0.00021,2]
[312021589,1705554632311,-1120.32492377,0.00021,2]
[312021590,1705554632323,-32914.53247179,0.00021,2]
[312021591,1705554632333,-162.5,0.00021089,2]
[312021592,1705554632343,-2000.0,0.000211,2]
[312021593,1705554632352,-500.0,0.00021161,2]
[312021594,1705554632362,-161.95,0.00021167,2]
[312021595,1705554632371,-168.88595527,0.00021234,2]
[312021596,1705554632381,-2492.9259777,0.00021257,2]
[312021597,1705554632391,-165.8,0.00021313,2]
[312021598,1705554632400,-161.38,0.00021315,2]
[312021599,1705554632410,-304.6,0.00021439,2]
[312021600,1705554632419,-644.41,0.00021488,2]
[312021601,1705554632430,-800.0,0.000215,7]
[312021602,1705554632440,-300.0,0.000215,7]
[312021603,1705554632452,-161.95,0.00021545,2]
[312021604,1705554632462,-150.0,0.00021576,2]
[312021605,1705554632471,-168.9163138,0.000216,3]
[312021606,1705554632481,-1700.0,0.000216,7]
[312021607,1705554632491,-600.0,0.000216,7]
[312021608,1705554632500,-150.0,0.00021683,2]
[312021609,1705554632510,-2600.0,0.000217,7]
[312021610,1705554632521,-900.0,0.000217,7]
[312021611,1705554632530,-161.38,0.00021725,2]
[312021612,1705554632540,-19999.99,0.00021757,2]
[312021613,1705554632550,-818.59,0.00021757,2]
[312021614,1705554632559,-485.83,0.00021762,2]
[312021615,1705554632569,-3500.0,0.000218,7]
[312021616,1705554632579,-1200.0,0.000218,7]
[312021617,1705554632589,-9927.1408,0.00021816,2]
[312021618,1705554632598,-1000.0,0.00021816,2]
[312021619,1705554632607,-500.0,0.00021817,2]
[312021620,1705554632616,-5000.0,0.00021817,2]
[312021621,1705554632625,-198.29067422,0.00021817,2]
[312021622,1705554632636,-18251.97067826,0.00021817,2]
[312021623,1705554632650,-1484.04522946,0.00021817,2]
[312021624,1705554632659,-4400.0,0.000219,7]
[312021625,1705554632668,-1500.0,0.000219,7]
[312021626,1705554632679,-166.60203053,0.000219,2]
[312021627,1705554632689,-151.52,0.00021902,2]
[312021628,1705554632705,-415.73,0.00021902,2]
[312021629,1705554632716,-1000.0,0.00021903,2]
[312021630,1705554632726,-181.71064083,0.00021906,2]
[312021631,1705554632736,-1000.0,0.00021911,2]
[312021632,1705554632746,-310.59622507,0.00021914,2]
[312021633,1705554632756,-1162.05479652,0.00021914,2]
[312021634,1705554632769,-319.354,0.00021914,2]
[312021646,1705554638193,-1559.15246589,0.00021914,2]
[312021647,1705554638207,-517.31972432,0.00021914,2]
[312021648,1705554638216,-405.60133483,0.00021914,2]
[312021649,1705554638226,-1088.83046512,0.00021914,2]
[312021650,1705554638236,-155.27971929,0.00021915,2]
[312021651,1705554638245,-744.72513967,0.00021915,2]
[312021662,1705554638624,-1017.8135551,0.00021915,2]
[312021663,1705554638639,-4195.86852048,0.00021915,2]
[312021664,1705554638649,-150.0,0.00021915,2]
[312021665,1705554638658,-18251.97067823,0.00021915,2]
[312021666,1705554638667,-1258.61698683,0.00021916,2]
[312021667,1705554638677,-269.68289212,0.00021916,2]
[312021668,1705554638688,-3635.12086048,0.00021916,2]
[312021669,1705554638698,-543091.8203342,0.00021916,2]
[312021670,1705554638709,-500.0,0.00021917,2]
[312021671,1705554638718,-617.00236934,0.00021917,2]
[312021672,1705554638729,-500.0,0.00021917,2]
[312021673,1705554638738,-362.63625244,0.00021917,2]
[312021674,1705554638747,-262.0687998,0.00021917,2]
[312021675,1705554638756,-523.95277485,0.00021917,2]
[312021676,1705554638766,-500.0,0.00021917,2]
[312021677,1705554638776,-500.0,0.00021917,2]
[312021678,1705554638787,-506.59349654,0.00021917,2]
[312021679,1705554638797,-601.73084711,0.00021917,2]
[312021680,1705554638806,-500.0,0.00021917,2]
[312021681,1705554638816,-500.0,0.00021917,2]
[312021682,1705554638825,-500.0,0.00021917,2]
[312021683,1705554638835,-500.0,0.00021917,2]
[312021684,1705554638845,-500.0,0.00021917,2]
[312021685,1705554638855,-500.0,0.00021917,2]
[312021686,1705554638865,-500.0,0.00021917,2]
[312021687,1705554638875,-507.97283972,0.00021917,2]
[312021688,1705554638885,-500.0,0.00021917,2]
[312021689,1705554638896,-500.0,0.00021917,2]
[312021690,1705554638906,-500.0,0.00021917,2]
[312021691,1705554638916,-500.0,0.00021917,2]
[312021692,1705554638926,-500.0,0.00021917,2]
[312021693,1705554638936,-547.62,0.00021917,2]
[312021694,1705554638946,-500.0,0.00021917,2]
[312021695,1705554638959,-500.0,0.00021917,2]
[312021696,1705554638969,-500.0,0.00021917,2]
[312021697,1705554638978,-341.17244285,0.00021917,2]
[312021698,1705554638987,-519.90741871,0.00021917,2]
[312021699,1705554638996,-500.0,0.00021917,2]
[312021700,1705554639006,-500.0,0.00021917,2]
[312021701,1705554639015,-556.7194646,0.00021917,2]
[312021702,1705554639024,-508.11790931,0.00021917,2]
[312021703,1705554639033,-500.0,0.00021917,2]
[312021704,1705554639043,-506.98,0.00021917,2]
[312021705,1705554639053,-500.0,0.00021917,2]
[312021706,1705554639063,-504.13868597,0.00021917,2]
[312021707,1705554639072,-500.0,0.00021917,2]
[312021708,1705554639082,-507.64166401,0.00021917,2]
[312021709,1705554639091,-506.05589155,0.00021917,2]
[312021710,1705554639101,-502.47803897,0.00021917,2]
[312021711,1705554639116,-503.6672686,0.00021917,2]
[312021712,1705554639125,-504.06778232,0.00021917,2]
[312021713,1705554639134,-500.0,0.00021917,2]
[312021714,1705554639143,-500.0,0.00021917,2]
[312021715,1705554639152,-500.0,0.00021917,2]
[312021716,1705554639161,-490.80711158,0.00021917,2]
[312021717,1705554639170,-509.62067534,0.00021917,2]
[312021718,1705554639181,-500.0,0.00021917,2]
[312021719,1705554639191,-500.0,0.00021917,2]
[312021720,1705554639202,-500.0,0.00021917,2]
[312021721,1705554639211,-500.0,0.00021917,2]
[312021722,1705554639220,-500.0,0.00021917,2]
[312021723,1705554639229,-500.0,0.00021917,2]
[312021724,1705554639238,-500.0,0.00021917,2]
[312021725,1705554639249,-500.0,0.00021917,2]
[312021726,1705554639258,-500.0,0.00021917,2]
[312021727,1705554639267,-500.0,0.00021917,2]
[312021728,1705554639281,-500.0,0.00021917,2]
[312021729,1705554639290,-500.0,0.00021917,2]
[312021730,1705554639300,-500.0,0.00021917,2]
[312021731,1705554639310,-174.22542595,0.00021917,2]
[312021732,1705554639319,-500.0,0.00021917,2]
[312021733,1705554639328,-500.0,0.00021917,2]
[312021734,1705554639337,-500.0,0.00021917,2]
[312021735,1705554639347,-502.15347886,0.00021917,2]
[312021736,1705554639356,-500.0,0.00021917,2]
[312021737,1705554639365,-500.0,0.00021917,2]
[312021738,1705554639374,-500.0,0.00021917,2]
[312021739,1705554639383,-500.0,0.00021917,2]
[312021740,1705554639393,-500.0,0.00021917,2]
[312021741,1705554639402,-500.0,0.00021917,2]
[312021742,1705554639411,-500.0,0.00021917,2]
[312021743,1705554639421,-500.0,0.00021917,2]
[312021744,1705554639430,-500.0,0.00021917,2]
[312021745,1705554639440,-258.77444629,0.00021917,2]
[312021746,1705554639449,-561.12387051,0.00021917,2]
[312021747,1705554639461,-500.0,0.00021917,2]
[312021748,1705554639469,-500.0,0.00021917,2]
[312021749,1705554639479,-500.0,0.00021917,2]
[312021750,1705554639488,-500.0,0.00021917,2]
[312021751,1705554639497,-500.0,0.00021917,2]
[312021752,1705554639506,-500.0,0.00021917,2]
[312021753,1705554639515,-500.0,0.00021917,2]
[312021754,1705554639525,-500.0,0.00021917,2]
[312021755,1705554639535,-500.0,0.00021917,2]
[312021756,1705554639544,-500.0,0.00021917,2]
[312021757,1705554639553,-505.63902613,0.00021917,2]
[312021758,1705554639562,-500.0,0.00021917,2]
[312021759,1705554639571,-500.0,0.00021917,2]
[312021760,1705554639580,-575.68,0.00021917,2]
[312021761,1705554639589,-500.0,0.00021917,2]
[312021762,1705554639599,-500.0,0.00021917,2]
[312021763,1705554639608,-500.0,0.00021917,2]
[312021764,1705554639618,-500.0,0.00021917,2]
[312021765,1705554639627,-500.0,0.00021917,2]
[312021766,1705554639638,-500.0,0.00021917,2]
[312021767,1705554639648,-500.0,0.00021917,2]
[312021768,1705554639659,-513.89047073,0.00021917,10]
[312021769,1705554639669,-500.0,0.00021917,2]
[312021770,1705554639893,-500.0,0.00021917,2]
[312021771,1705554639903,-500.0,0.00021917,2]
[312021772,1705554639913,-500.0,0.00021917,2]
[312021773,1705554639923,-500.0,0.00021917,2]
[312021774,1705554639933,-500.0,0.00021917,2]
[312021775,1705554639944,-500.0,0.00021917,2]
[312021776,1705554639955,-500.0,0.00021917,2]
[312021777,1705554639964,-500.0,0.00021917,2]
[312021778,1705554639973,-500.0,0.00021917,2]
[312021779,1705554639983,-523.07894434,0.00021917,2]
[312021780,1705554639992,-500.0,0.00021917,2]
[312021781,1705554640001,-504.61783638,0.00021917,2]
[312021782,1705554640011,-500.0,0.00021917,2]
[312021783,1705554640021,-500.0,0.00021917,2]
[312021784,1705554640031,-500.0,0.00021917,2]
[312021785,1705554640040,-500.0,0.00021917,2]
[312021786,1705554640050,-500.0,0.00021917,2]
[312021787,1705554640059,-500.0,0.00021917,2]
[312021788,1705554640068,-500.0,0.00021917,2]
[312021789,1705554640077,-500.0,0.00021917,2]
[312021790,1705554640086,-500.0,0.00021917,2]
[312021791,1705554640096,-500.0,0.00021917,2]
[312021792,1705554640106,-634.53,0.00021917,2]
[312021793,1705554640116,-500.0,0.00021917,2]
[312021794,1705554640125,-500.0,0.00021917,2]
[312021795,1705554640135,-500.0,0.00021917,2]
[312021796,1705554640145,-509.22548085,0.00021917,2]
[312021797,1705554640154,-500.0,0.00021917,2]
[312021798,1705554640164,-500.0,0.00021917,2]